[Event "Titled Tuesday Blitz April 4 Early 2023"]
[White "HamedWafa4"]
[Black "Staudenhocker43"]
[WhiteElo "2360"]
[BlackElo "2554"]
[Result "1/2-1/2"]
[Round "02"]
[TimeControl "180+2"]
[Date "2023.04.04"]
[WhiteClock "0:00:16"]
[BlackClock "0:00:10"]

1. e4 {[%clk 0:03:00]}  c5 {[%clk 0:02:59]} 2. Nf3 {[%clk 0:03:01]}  d6 {[%clk 0:02:59]} 3. Bb5+ {[%clk 0:03:01]}  Bd7 {[%clk 0:02:59]} 4. Bxd7+ {[%clk 0:03:01]}  Qxd7 {[%clk 0:03:00]} 5. O-O {[%clk 0:03:01]}  Nc6 {[%clk 0:03:00]} 6. c3 {[%clk 0:03:00]}  d5 {[%clk 0:03:00]} 7. exd5 {[%clk 0:03:00]}  Qxd5 {[%clk 0:03:01]} 8. d4 {[%clk 0:03:00]}  e6 {[%clk 0:03:01]} 9. Be3 {[%clk 0:03:00]}  cxd4 {[%clk 0:03:00]} 10. cxd4 {[%clk 0:03:01]}  Nf6 {[%clk 0:02:59]} 11. Nc3 {[%clk 0:03:01]}  Qd6 {[%clk 0:02:58]} 12. Qb3 {[%clk 0:03:02]}  Qd7 {[%clk 0:02:48]} 13. Rfd1 {[%clk 0:02:58]}  Rd8 {[%clk 0:02:44]} 14. Ne5 {[%clk 0:02:53]}  Qc8 {[%clk 0:02:27]} 15. Rac1 {[%clk 0:02:41]}  Be7 {[%clk 0:02:10]} 16. Nxc6 {[%clk 0:02:38]}  bxc6 {[%clk 0:02:10]} 17. Qa4 {[%clk 0:02:37]}  Qb7 {[%clk 0:02:02]} 18. a3 {[%clk 0:02:24]}  O-O {[%clk 0:02:01]} 19. b4 {[%clk 0:02:23]}  a6 {[%clk 0:01:53]} 20. Qc2 {[%clk 0:02:20]}  Rc8 {[%clk 0:01:50]} 21. Bg5 {[%clk 0:02:12]}  Rfd8 {[%clk 0:01:42]} 22. Na4 {[%clk 0:01:58]}  Qb5 {[%clk 0:01:42]} 23. Nc5 {[%clk 0:01:52]}  h6 {[%clk 0:01:30]} 24. Bh4 {[%clk 0:01:48]}  Rd5 {[%clk 0:01:23]} 25. Ne4 {[%clk 0:01:00]}  Nxe4 {[%clk 0:00:53]} 26. Qxe4 {[%clk 0:01:00]}  Bxh4 {[%clk 0:00:52]} 27. Qxh4 {[%clk 0:01:00]}  a5 {[%clk 0:00:44]} 28. bxa5 {[%clk 0:00:51]}  Qxa5 {[%clk 0:00:45]} 29. Qg3 {[%clk 0:00:49]}  Qb6 {[%clk 0:00:35]} 30. Qc3 {[%clk 0:00:45]}  Qa7 {[%clk 0:00:20]} 31. g3 {[%clk 0:00:42]}  Rcd8 {[%clk 0:00:16]} 32. Qxc6 {[%clk 0:00:40]}  Qxa3 {[%clk 0:00:16]} 33. Qc7 {[%clk 0:00:32]}  Qf8 {[%clk 0:00:13]} 34. Qc4 {[%clk 0:00:25]}  Qd6 {[%clk 0:00:13]} 35. Re1 {[%clk 0:00:17]}  Rxd4 {[%clk 0:00:13]} 36. Qc7 {[%clk 0:00:17]}  Rd2 {[%clk 0:00:12]} 37. Qxd6 {[%clk 0:00:17]}  R2xd6 {[%clk 0:00:13]} 38. Rc7 {[%clk 0:00:17]}  R6d7 {[%clk 0:00:13]} 39. Rxd7 {[%clk 0:00:17]}  Rxd7 {[%clk 0:00:14]} 40. Kg2 {[%clk 0:00:17]}  g5 {[%clk 0:00:14]} 41. h3 {[%clk 0:00:17]}  Kg7 {[%clk 0:00:15]} 42. Ra1 {[%clk 0:00:17]}  Kg6 {[%clk 0:00:15]} 43. Ra5 {[%clk 0:00:17]}  Rd5 {[%clk 0:00:14]} 44. Ra6 {[%clk 0:00:17]}  Rd2 {[%clk 0:00:14]} 45. Ra5 {[%clk 0:00:18]}  h5 {[%clk 0:00:14]} 46. Rb5 {[%clk 0:00:17]}  Rd5 {[%clk 0:00:14]} 47. Rb4 {[%clk 0:00:17]}  f5 {[%clk 0:00:13]} 48. Rb8 {[%clk 0:00:17]}  g4 {[%clk 0:00:13]} 49. h4 {[%clk 0:00:16]}  Rd7 {[%clk 0:00:12]} 50. Rg8+ {[%clk 0:00:16]}  Rg7 {[%clk 0:00:12]} 51. Re8 {[%clk 0:00:16]}  Kf6 {[%clk 0:00:11]} 52. Rh8 {[%clk 0:00:16]}  Kg6 {[%clk 0:00:11]} 53. Re8 {[%clk 0:00:16]}  Kf6 {[%clk 0:00:10]} 54. Rh8 {[%clk 0:00:16]}  Kg6 {[%clk 0:00:10]} 55. Re8 {[%clk 0:00:16]} 1/2-1/2


[Site "https://www.chess.com"]

[Event "Titled Tuesday Blitz April 4 Early 2023"]
[White "Skaric, Djuro"]
[Black "Makaj, Marko"]
[WhiteFideId "934569"]
[BlackFideId "14508141"]
[WhiteElo "2282"]
[BlackElo "2302"]
[Result "0-1"]
[Round "02"]
[TimeControl "180+2"]
[Date "2023.04.04"]
[WhiteClock "0:02:51"]
[BlackClock "0:02:40"]

1. g3 {[%clk 0:02:55]}  g6 {[%clk 0:02:51]} 2. Bg2 {[%clk 0:02:56]}  Bg7 {[%clk 0:02:51]} 3. d3 {[%clk 0:02:55]}  Nf6 {[%clk 0:02:50]} 4. Nf3 {[%clk 0:02:56]}  O-O {[%clk 0:02:50]} 5. O-O {[%clk 0:02:56]}  c5 {[%clk 0:02:51]} 6. Nc3 {[%clk 0:02:55]}  Nc6 {[%clk 0:02:51]} 7. h3 {[%clk 0:02:55]}  Rb8 {[%clk 0:02:50]} 8. e4 {[%clk 0:02:55]}  b5 {[%clk 0:02:50]} 9. Ne2 {[%clk 0:02:54]}  d5 {[%clk 0:02:49]} 10. Ne1 {[%clk 0:02:55]}  a5 {[%clk 0:02:45]} 11. f4 {[%clk 0:02:53]}  dxe4 {[%clk 0:02:42]} 12. dxe4 {[%clk 0:02:51]}  Qxd1 {[%clk 0:02:40]} 0-1


[Site "https://www.chess.com"]

[Event "Titled Tuesday Blitz April 4 Early 2023"]
[White "Weishaeutel, Moritz"]
[Black "Kujawski, Adam"]
[WhiteFideId "12967300"]
[BlackFideId "1100920"]
[WhiteElo "2301"]
[BlackElo "2054"]
[Result "1/2-1/2"]
[Round "02"]
[TimeControl "180+2"]
[Date "2023.04.04"]
[WhiteClock "0:00:10"]
[BlackClock "0:00:12"]

1. d4 {[%clk 0:03:00]}  Nf6 {[%clk 0:02:58]} 2. g4 {[%clk 0:03:01]}  Nxg4 {[%clk 0:02:58]} 3. e4 {[%clk 0:03:01]}  Nf6 {[%clk 0:02:58]} 4. e5 {[%clk 0:03:00]}  Ng8 {[%clk 0:02:57]} 5. Nf3 {[%clk 0:02:52]}  d5 {[%clk 0:02:57]} 6. c4 {[%clk 0:02:48]}  c6 {[%clk 0:02:57]} 7. Nc3 {[%clk 0:02:48]}  Bg4 {[%clk 0:02:50]} 8. h3 {[%clk 0:02:42]}  Bxf3 {[%clk 0:02:50]} 9. Qxf3 {[%clk 0:02:42]}  e6 {[%clk 0:02:50]} 10. Be3 {[%clk 0:02:37]}  Ne7 {[%clk 0:02:48]} 11. Bd3 {[%clk 0:02:36]}  dxc4 {[%clk 0:02:45]} 12. Bxc4 {[%clk 0:02:37]}  Nf5 {[%clk 0:02:45]} 13. O-O-O {[%clk 0:02:36]}  Nd7 {[%clk 0:02:44]} 14. Kb1 {[%clk 0:02:30]}  Nb6 {[%clk 0:02:43]} 15. Bd3 {[%clk 0:02:26]}  g6 {[%clk 0:02:35]} 16. Ne4 {[%clk 0:02:19]}  Be7 {[%clk 0:02:34]} 17. h4 {[%clk 0:01:56]}  h6 {[%clk 0:02:12]} 18. h5 {[%clk 0:01:53]}  g5 {[%clk 0:02:09]} 19. Bc2 {[%clk 0:01:29]}  Qd7 {[%clk 0:02:03]} 20. Nf6+ {[%clk 0:01:14]}  Bxf6 {[%clk 0:02:02]} 21. exf6 {[%clk 0:01:15]}  O-O-O {[%clk 0:01:58]} 22. Rd3 {[%clk 0:01:11]}  Nd5 {[%clk 0:01:55]} 23. Ra3 {[%clk 0:01:10]}  Kb8 {[%clk 0:01:54]} 24. Rc1 {[%clk 0:00:59]}  Rhg8 {[%clk 0:01:42]} 25. Qe2 {[%clk 0:00:54]}  g4 {[%clk 0:01:36]} 26. Qe1 {[%clk 0:00:52]}  g3 {[%clk 0:01:31]} 27. Bxf5 {[%clk 0:00:48]}  exf5 {[%clk 0:01:30]} 28. fxg3 {[%clk 0:00:46]}  Rge8 {[%clk 0:01:26]} 29. Qd2 {[%clk 0:00:29]}  Nxe3 {[%clk 0:01:21]} 30. Rxe3 {[%clk 0:00:30]}  Rxe3 {[%clk 0:01:21]} 31. Qxe3 {[%clk 0:00:31]}  Qxd4 {[%clk 0:01:19]} 32. Qxh6 {[%clk 0:00:31]}  Qe4+ {[%clk 0:00:58]} 33. Ka1 {[%clk 0:00:32]}  Rg8 {[%clk 0:00:53]} 34. Qf4+ {[%clk 0:00:26]}  Qxf4 {[%clk 0:00:52]} 35. gxf4 {[%clk 0:00:26]}  Kc7 {[%clk 0:00:44]} 36. h6 {[%clk 0:00:20]}  Kd6 {[%clk 0:00:41]} 37. h7 {[%clk 0:00:20]}  Rh8 {[%clk 0:00:41]} 38. Rh1 {[%clk 0:00:21]}  Ke6 {[%clk 0:00:40]} 39. Rh6 {[%clk 0:00:21]}  Kd5 {[%clk 0:00:39]} 40. Kb1 {[%clk 0:00:21]}  Ke4 {[%clk 0:00:39]} 41. Rh4 {[%clk 0:00:22]}  Kf3 {[%clk 0:00:38]} 42. Kc2 {[%clk 0:00:21]}  Kg3 {[%clk 0:00:38]} 43. Rh1 {[%clk 0:00:18]}  Kxf4 {[%clk 0:00:37]} 44. Kd3 {[%clk 0:00:17]}  Kg5 {[%clk 0:00:33]} 45. Ke3 {[%clk 0:00:09]}  Kxf6 {[%clk 0:00:34]} 46. Kf4 {[%clk 0:00:10]}  Kg7 {[%clk 0:00:34]} 47. Rg1+ {[%clk 0:00:09]}  Kf8 {[%clk 0:00:31]} 48. Rh1 {[%clk 0:00:08]}  Kg7 {[%clk 0:00:31]} 49. Rg1+ {[%clk 0:00:09]}  Kf6 {[%clk 0:00:30]} 50. Rh1 {[%clk 0:00:09]}  a5 {[%clk 0:00:28]} 51. Rh5 {[%clk 0:00:04]}  Kg6 {[%clk 0:00:27]} 52. Rg5+ {[%clk 0:00:02]}  Kxh7 {[%clk 0:00:27]} 53. Rxf5 {[%clk 0:00:03]}  Kg6 {[%clk 0:00:26]} 54. Rxa5 {[%clk 0:00:03]}  Rh4+ {[%clk 0:00:26]} 55. Ke3 {[%clk 0:00:03]}  Rb4 {[%clk 0:00:26]} 56. b3 {[%clk 0:00:03]}  Rb5 {[%clk 0:00:25]} 57. Ra8 {[%clk 0:00:03]}  Kf5 {[%clk 0:00:24]} 58. Kd3 {[%clk 0:00:03]}  f6 {[%clk 0:00:22]} 59. Kc4 {[%clk 0:00:03]}  Kf4 {[%clk 0:00:21]} 60. a4 {[%clk 0:00:04]}  Re5 {[%clk 0:00:20]} 61. Rb8 {[%clk 0:00:04]}  Re7 {[%clk 0:00:19]} 62. a5 {[%clk 0:00:04]}  f5 {[%clk 0:00:19]} 63. Kc5 {[%clk 0:00:04]}  Ke3 {[%clk 0:00:18]} 64. Kb6 {[%clk 0:00:05]}  f4 {[%clk 0:00:18]} 65. Rxb7 {[%clk 0:00:05]}  Rxb7+ {[%clk 0:00:14]} 66. Kxb7 {[%clk 0:00:06]}  f3 {[%clk 0:00:14]} 67. a6 {[%clk 0:00:06]}  f2 {[%clk 0:00:15]} 68. a7 {[%clk 0:00:07]}  f1=Q {[%clk 0:00:15]} 69. a8=Q {[%clk 0:00:08]}  Qb5+ {[%clk 0:00:16]} 70. Kc7 {[%clk 0:00:08]}  Qxb3 {[%clk 0:00:14]} 71. Qxc6 {[%clk 0:00:08]}  Qf7+ {[%clk 0:00:13]} 72. Kb6 {[%clk 0:00:08]}  Qb3+ {[%clk 0:00:13]} 73. Ka5 {[%clk 0:00:08]}  Qa2+ {[%clk 0:00:13]} 74. Kb4 {[%clk 0:00:08]}  Qb2+ {[%clk 0:00:12]} 75. Ka5 {[%clk 0:00:09]}  Qa2+ {[%clk 0:00:12]} 76. Kb6 {[%clk 0:00:10]}  Qb2+ {[%clk 0:00:12]} 77. Kc7 {[%clk 0:00:10]}  Qg7+ {[%clk 0:00:12]} 78. Kd8 {[%clk 0:00:10]}  Qd4+ {[%clk 0:00:11]} 79. Ke7 {[%clk 0:00:10]}  Qe4+ {[%clk 0:00:11]} 80. Qxe4+ {[%clk 0:00:10]}  Kxe4 {[%clk 0:00:12]} 1/2-1/2


[Site "https://www.chess.com"]

[Event "Titled Tuesday Blitz April 4 Early 2023"]
[White "Degenbaev, Aziz"]
[Black "Ruperez Benito, Antonio"]
[WhiteFideId "13802640"]
[BlackFideId "22245049"]
[WhiteElo "2152"]
[BlackElo "2273"]
[Result "0-1"]
[Round "02"]
[TimeControl "180+2"]
[Date "2023.04.04"]
[WhiteClock "0:01:50"]
[BlackClock "0:02:24"]

1. e4 {[%clk 0:03:00]}  e6 {[%clk 0:02:59]} 2. d4 {[%clk 0:02:58]}  d5 {[%clk 0:03:00]} 3. Nc3 {[%clk 0:02:58]}  Bb4 {[%clk 0:02:59]} 4. e5 {[%clk 0:02:57]}  c5 {[%clk 0:02:59]} 5. a3 {[%clk 0:02:58]}  Bxc3+ {[%clk 0:02:58]} 6. bxc3 {[%clk 0:02:58]}  Qa5 {[%clk 0:02:59]} 7. Bd2 {[%clk 0:02:55]}  Qa4 {[%clk 0:02:59]} 8. Qg4 {[%clk 0:02:54]}  Kf8 {[%clk 0:02:59]} 9. Nf3 {[%clk 0:02:43]}  Nc6 {[%clk 0:02:59]} 10. h4 {[%clk 0:02:36]}  Nge7 {[%clk 0:02:53]} 11. h5 {[%clk 0:02:29]}  h6 {[%clk 0:02:53]} 12. Qf4 {[%clk 0:02:27]}  Qxc2 {[%clk 0:02:52]} 13. a4 {[%clk 0:02:20]}  c4 {[%clk 0:02:49]} 14. Be2 {[%clk 0:02:18]}  Na5 {[%clk 0:02:42]} 15. O-O {[%clk 0:02:07]}  Nb3 {[%clk 0:02:41]} 16. Bd1 {[%clk 0:02:07]}  Qf5 {[%clk 0:02:28]} 17. Bxb3 {[%clk 0:02:04]}  Qxf4 {[%clk 0:02:25]} 18. Bxf4 {[%clk 0:02:03]}  cxb3 {[%clk 0:02:26]} 19. Rab1 {[%clk 0:02:03]}  Nc6 {[%clk 0:02:26]} 20. Rxb3 {[%clk 0:02:02]}  Na5 {[%clk 0:02:27]} 21. Rb5 {[%clk 0:02:02]}  b6 {[%clk 0:02:27]} 22. Nd2 {[%clk 0:01:52]}  Ba6 {[%clk 0:02:25]} 23. Rxa5 {[%clk 0:01:50]}  Bxf1 {[%clk 0:02:24]} 0-1


[Site "https://www.chess.com"]

[Event "Titled Tuesday Blitz April 4 Early 2023"]
[White "Girsh, Daniel"]
[Black "Shuvalov, Evgenij"]
[WhiteFideId "30949190"]
[BlackFideId "4187237"]
[WhiteElo "2075"]
[BlackElo "2080"]
[Result "1-0"]
[Round "02"]
[TimeControl "180+2"]
[Date "2023.04.04"]
[WhiteClock "0:00:28"]
[BlackClock "0:00:04"]

1. e4 {[%clk 0:03:00]}  e6 {[%clk 0:02:55]} 2. Ne2 {[%clk 0:03:00]}  d5 {[%clk 0:02:54]} 3. Ng3 {[%clk 0:03:00]}  c5 {[%clk 0:02:54]} 4. Be2 {[%clk 0:02:57]}  Nc6 {[%clk 0:02:54]} 5. O-O {[%clk 0:02:56]}  Nf6 {[%clk 0:02:53]} 6. d3 {[%clk 0:02:55]}  Be7 {[%clk 0:02:51]} 7. Nc3 {[%clk 0:02:54]}  a6 {[%clk 0:02:45]} 8. f4 {[%clk 0:02:44]}  b5 {[%clk 0:02:45]} 9. e5 {[%clk 0:02:44]}  Nd7 {[%clk 0:02:43]} 10. Bf3 {[%clk 0:02:41]}  g6 {[%clk 0:02:40]} 11. Nce2 {[%clk 0:02:41]}  h5 {[%clk 0:02:38]} 12. Be3 {[%clk 0:02:39]}  Bb7 {[%clk 0:02:33]} 13. c3 {[%clk 0:02:39]}  a5 {[%clk 0:02:31]} 14. d4 {[%clk 0:02:39]}  b4 {[%clk 0:02:30]} 15. Nh1 {[%clk 0:02:37]}  a4 {[%clk 0:02:24]} 16. a3 {[%clk 0:02:36]}  bxa3 {[%clk 0:02:22]} 17. bxa3 {[%clk 0:02:35]}  Nb6 {[%clk 0:02:17]} 18. Nf2 {[%clk 0:02:26]}  Nc4 {[%clk 0:02:16]} 19. Bc1 {[%clk 0:02:26]}  N6a5 {[%clk 0:02:14]} 20. Nd3 {[%clk 0:02:23]}  Nb3 {[%clk 0:02:13]} 21. Rb1 {[%clk 0:02:23]}  cxd4 {[%clk 0:02:11]} 22. Nxd4 {[%clk 0:02:20]}  Nxc1 {[%clk 0:01:39]} 23. Rxb7 {[%clk 0:02:18]}  Nxd3 {[%clk 0:01:35]} 24. Qxd3 {[%clk 0:02:19]}  Qc8 {[%clk 0:01:28]} 25. Rfb1 {[%clk 0:02:15]}  Nxa3 {[%clk 0:01:20]} 26. R1b6 {[%clk 0:02:14]}  Nc4 {[%clk 0:01:20]} 27. Nxe6 {[%clk 0:01:47]}  Nxb6 {[%clk 0:01:07]} 28. Qb5+ {[%clk 0:01:47]}  Nd7 {[%clk 0:01:04]} 29. Nc7+ {[%clk 0:01:46]}  Kf8 {[%clk 0:01:02]} 30. Nxa8 {[%clk 0:01:46]}  Qxa8 {[%clk 0:00:55]} 31. Qxd7 {[%clk 0:01:45]}  Qe8 {[%clk 0:00:47]} 32. Qc7 {[%clk 0:01:40]}  Bd8 {[%clk 0:00:35]} 33. Qc5+ {[%clk 0:01:31]}  Kg7 {[%clk 0:00:32]} 34. Bxd5 {[%clk 0:01:29]}  Rf8 {[%clk 0:00:32]} 35. e6 {[%clk 0:01:23]}  Bf6 {[%clk 0:00:32]} 36. e7 {[%clk 0:01:15]}  Rh8 {[%clk 0:00:28]} 37. Bc6 {[%clk 0:01:13]}  Qc8 {[%clk 0:00:23]} 38. Qd6 {[%clk 0:01:05]}  a3 {[%clk 0:00:19]} 39. Ra7 {[%clk 0:00:59]}  Bxc3 {[%clk 0:00:10]} 40. Rxa3 {[%clk 0:00:56]}  Bf6 {[%clk 0:00:10]} 41. Ra8 {[%clk 0:00:54]}  Qf5 {[%clk 0:00:08]} 42. e8=Q {[%clk 0:00:52]}  Rxe8 {[%clk 0:00:08]} 43. Rxe8 {[%clk 0:00:51]}  Qb1+ {[%clk 0:00:08]} 44. Kf2 {[%clk 0:00:51]}  Qc2+ {[%clk 0:00:08]} 45. Re2 {[%clk 0:00:51]}  Qc4 {[%clk 0:00:06]} 46. Qd5 {[%clk 0:00:49]}  Bd4+ {[%clk 0:00:06]} 47. Kf1 {[%clk 0:00:45]}  Qc1+ {[%clk 0:00:03]} 48. Re1 {[%clk 0:00:46]}  Qd2 {[%clk 0:00:03]} 49. Qf3 {[%clk 0:00:46]}  Qc2 {[%clk 0:00:02]} 50. Be4 {[%clk 0:00:45]}  Qc4+ {[%clk 0:00:02]} 51. Qd3 {[%clk 0:00:45]}  Qc5 {[%clk 0:00:02]} 52. g3 {[%clk 0:00:43]}  Bf6 {[%clk 0:00:01]} 53. Kg2 {[%clk 0:00:41]}  h4 {[%clk 0:00:02]} 54. Qe3 {[%clk 0:00:37]}  h3+ {[%clk 0:00:02]} 55. Kxh3 {[%clk 0:00:36]}  Qh5+ {[%clk 0:00:03]} 56. Kg2 {[%clk 0:00:36]}  Qg4 {[%clk 0:00:02]} 57. Bf3 {[%clk 0:00:36]}  Qd7 {[%clk 0:00:03]} 58. Qe4 {[%clk 0:00:33]}  Qd2+ {[%clk 0:00:03]} 59. Re2 {[%clk 0:00:34]}  Qa5 {[%clk 0:00:04]} 60. Qd5 {[%clk 0:00:34]}  Qc7 {[%clk 0:00:04]} 61. h4 {[%clk 0:00:32]}  Qc3 {[%clk 0:00:04]} 62. h5 {[%clk 0:00:29]}  gxh5 {[%clk 0:00:05]} 63. Bxh5 {[%clk 0:00:28]}  Qa1 {[%clk 0:00:04]} 64. Qxf7+ {[%clk 0:00:28]}  Kh6 {[%clk 0:00:04]} 65. Qg6# {[%clk 0:00:28]} 1-0


[Site "https://www.chess.com"]

[Event "Titled Tuesday Blitz April 4 Early 2023"]
[White "Mirzanurov, Bulat"]
[Black "Rangel, Daniel"]
[WhiteFideId "4184521"]
[BlackFideId "2124475"]
[WhiteElo "2019"]
[BlackElo "2256"]
[Result "1-0"]
[Round "02"]
[TimeControl "180+2"]
[Date "2023.04.04"]
[WhiteClock "0:00:04"]
[BlackClock "0:00:05"]

1. e4 {[%clk 0:03:00]}  c5 {[%clk 0:02:59]} 2. Nf3 {[%clk 0:03:00]}  g6 {[%clk 0:03:00]} 3. d4 {[%clk 0:02:59]}  cxd4 {[%clk 0:03:01]} 4. Nxd4 {[%clk 0:02:59]}  Bg7 {[%clk 0:03:01]} 5. c4 {[%clk 0:02:59]}  Nc6 {[%clk 0:03:01]} 6. Be3 {[%clk 0:02:58]}  Nf6 {[%clk 0:03:01]} 7. Nc3 {[%clk 0:02:58]}  O-O {[%clk 0:03:02]} 8. Be2 {[%clk 0:02:57]}  Nxd4 {[%clk 0:03:02]} 9. Bxd4 {[%clk 0:02:57]}  d6 {[%clk 0:03:03]} 10. Qd2 {[%clk 0:02:53]}  Bd7 {[%clk 0:03:03]} 11. O-O {[%clk 0:02:50]}  Bc6 {[%clk 0:03:04]} 12. f3 {[%clk 0:02:51]}  Nd7 {[%clk 0:03:03]} 13. Be3 {[%clk 0:02:49]}  a5 {[%clk 0:03:03]} 14. Rac1 {[%clk 0:02:45]}  Nc5 {[%clk 0:03:04]} 15. Nb5 {[%clk 0:02:44]}  Bxb5 {[%clk 0:03:03]} 16. cxb5 {[%clk 0:02:44]}  b6 {[%clk 0:03:03]} 17. Bc4 {[%clk 0:02:33]}  Qc7 {[%clk 0:02:43]} 18. Bd5 {[%clk 0:02:30]}  Rad8 {[%clk 0:02:41]} 19. Bc6 {[%clk 0:02:18]}  e6 {[%clk 0:02:40]} 20. Rfd1 {[%clk 0:01:57]}  Qe7 {[%clk 0:02:31]} 21. Bg5 {[%clk 0:01:45]}  Bf6 {[%clk 0:02:30]} 22. Bf4 {[%clk 0:01:41]}  Be5 {[%clk 0:02:20]} 23. Bh6 {[%clk 0:01:12]}  Bg7 {[%clk 0:02:16]} 24. Bxg7 {[%clk 0:01:09]}  Kxg7 {[%clk 0:02:17]} 25. Qd4+ {[%clk 0:01:04]}  e5 {[%clk 0:02:17]} 26. Qe3 {[%clk 0:00:58]}  f5 {[%clk 0:02:12]} 27. Bd5 {[%clk 0:00:51]}  f4 {[%clk 0:02:07]} 28. Qf2 {[%clk 0:00:50]}  h5 {[%clk 0:02:04]} 29. b3 {[%clk 0:00:48]}  Rc8 {[%clk 0:02:01]} 30. a3 {[%clk 0:00:48]}  Kh6 {[%clk 0:01:57]} 31. b4 {[%clk 0:00:47]}  axb4 {[%clk 0:01:57]} 32. axb4 {[%clk 0:00:48]}  Na4 {[%clk 0:01:55]} 33. Bc6 {[%clk 0:00:38]}  Rc7 {[%clk 0:01:51]} 34. Qc2 {[%clk 0:00:34]}  Ra7 {[%clk 0:01:47]} 35. Ra1 {[%clk 0:00:34]}  d5 {[%clk 0:01:28]} 36. Rxa4 {[%clk 0:00:32]}  Rxa4 {[%clk 0:01:27]} 37. Qxa4 {[%clk 0:00:33]}  d4 {[%clk 0:01:28]} 38. Qb3 {[%clk 0:00:26]}  Rd8 {[%clk 0:01:23]} 39. Qb2 {[%clk 0:00:21]}  Rd6 {[%clk 0:01:15]} 40. Bd5 {[%clk 0:00:19]}  Rd7 {[%clk 0:01:14]} 41. Rc1 {[%clk 0:00:19]}  Rc7 {[%clk 0:01:11]} 42. Rxc7 {[%clk 0:00:19]}  Qxc7 {[%clk 0:01:12]} 43. Bc6 {[%clk 0:00:20]}  Qd6 {[%clk 0:01:08]} 44. Kf1 {[%clk 0:00:19]}  Qe7 {[%clk 0:01:01]} 45. h3 {[%clk 0:00:17]}  Qa7 {[%clk 0:00:58]} 46. Ke2 {[%clk 0:00:16]}  Qa4 {[%clk 0:00:50]} 47. Kd2 {[%clk 0:00:16]}  Qa7 {[%clk 0:00:49]} 48. Bd5 {[%clk 0:00:15]}  Qe7 {[%clk 0:00:48]} 49. Bc4 {[%clk 0:00:15]}  Qg5 {[%clk 0:00:47]} 50. Ke1 {[%clk 0:00:11]}  Qg3+ {[%clk 0:00:45]} 51. Kf1 {[%clk 0:00:11]}  Qh2 {[%clk 0:00:45]} 52. Kf2 {[%clk 0:00:10]}  Qg3+ {[%clk 0:00:43]} 53. Kf1 {[%clk 0:00:11]}  Qh2 {[%clk 0:00:43]} 54. Bd3 {[%clk 0:00:10]}  Qh1+ {[%clk 0:00:42]} 55. Kf2 {[%clk 0:00:10]}  Qd1 {[%clk 0:00:37]} 56. Qc2 {[%clk 0:00:10]}  Qa1 {[%clk 0:00:36]} 57. h4 {[%clk 0:00:08]}  Qa7 {[%clk 0:00:30]} 58. Qc6 {[%clk 0:00:08]}  Qa2+ {[%clk 0:00:27]} 59. Kg1 {[%clk 0:00:08]}  Qa1+ {[%clk 0:00:26]} 60. Kh2 {[%clk 0:00:08]}  Qe1 {[%clk 0:00:26]} 61. Qe8 {[%clk 0:00:04]}  Qxh4+ {[%clk 0:00:25]} 62. Kg1 {[%clk 0:00:05]}  Qe1+ {[%clk 0:00:25]} 63. Kh2 {[%clk 0:00:05]}  Qg3+ {[%clk 0:00:25]} 64. Kg1 {[%clk 0:00:06]}  Qe1+ {[%clk 0:00:25]} 65. Kh2 {[%clk 0:00:06]}  Qg3+ {[%clk 0:00:12]} 66. Kg1 {[%clk 0:00:05]}  h4 {[%clk 0:00:13]} 67. Qh8+ {[%clk 0:00:04]}  Kg5 {[%clk 0:00:13]} 68. Qd8+ {[%clk 0:00:05]}  Kh5 {[%clk 0:00:12]} 69. Qd7 {[%clk 0:00:04]}  Qe1+ {[%clk 0:00:10]} 70. Kh2 {[%clk 0:00:04]}  Qxb4 {[%clk 0:00:09]} 71. Qg4+ {[%clk 0:00:03]}  Kh6 {[%clk 0:00:10]} 72. Qxh4+ {[%clk 0:00:04]}  Kg7 {[%clk 0:00:09]} 73. Qg5 {[%clk 0:00:04]}  Qd6 {[%clk 0:00:09]} 74. Qh4 {[%clk 0:00:04]}  Qc5 {[%clk 0:00:08]} 75. Qg5 {[%clk 0:00:04]}  Qd6 {[%clk 0:00:07]} 76. Bc4 {[%clk 0:00:04]}  Qc5 {[%clk 0:00:07]} 77. Bd5 {[%clk 0:00:05]}  Qd6 {[%clk 0:00:08]} 78. Qg4 {[%clk 0:00:04]}  Kf6 {[%clk 0:00:08]} 79. Qc8 {[%clk 0:00:05]}  Kg5 {[%clk 0:00:07]} 80. Kh3 {[%clk 0:00:05]}  Qe7 {[%clk 0:00:07]} 81. Qh8 {[%clk 0:00:04]}  Qf6 {[%clk 0:00:05]} 82. Qh4# {[%clk 0:00:04]} 1-0


[Site "https://www.chess.com"]